bitfinex/quotes_SOLUSD_20220118
["timestamp","ask_amount","ask_price","bid_price","bid_amount"]
[1642479805640,17.29320052,138.48,138.35,42.59930312]
[1642479805841,11.61012764,138.48,138.38,10.8367]
[1642479806040,1.38012764,138.48,138.38,10.8367]
[1642479806241,1.38012764,138.48,138.39,0.25]
[1642479806842,4.52812764,138.48,138.38,51.54770477]
[1642479807240,4.52812764,138.48,138.39,0.25]
[1642479807445,4.52812764,138.48,138.38,51.54770477]
[1642479807446,10.52812764,138.48,138.38,51.54770477]
[1642479807640,0.25,138.47,138.39,0.25]
[1642479807842,2.888,138.46,138.39,0.25]
[1642479808241,83.98033772,138.46,138.39,0.25]
[1642479808442,12.16033772,138.46,138.39,0.25]
[1642479808641,2.888,138.46,138.39,0.25]
[1642479808842,2.888,138.47,138.39,0.25]
[1642479809043,2.888,138.47,138.39,11.086]
[1642479809242,1.38012764,138.48,138.39,17.74]
[1642479809442,1.38012764,138.48,138.39,23.74]
[1642479810243,5.11718119,138.47,138.39,17.086]
[1642479810441,1.38012764,138.48,138.39,17.086]
[1642479810843,2.888,138.47,138.39,0.25]
[1642479811047,3.138,138.47,138.39,0.25]
[1642479811244,4.92705272,138.47,138.3,75.1884]
[1642479811445,15.15705272,138.47,138.33,6.1782005]
[1642479811645,26.25725272,138.47,138.34,0.25]
[1642479811845,13.378,138.47,138.34,11.0901]
[1642479812045,13.378,138.47,138.35,38.66991255]
[1642479812046,32.90564225,138.46,138.35,38.66991255]
[1642479812248,32.90564225,138.46,138.34,0.25]
[1642479812249,2.89,138.45,138.34,0.25]
[1642479812446,10.48,138.44,138.31,6.1782005]
[1642479812648,2.89,138.43,138.33,0.25]
[1642479812847,0.25,138.42,138.33,0.25]
[1642479813047,2.89,138.41,138.31,6.1782005]
[1642479813247,0.25,138.4,138.32,35.88486779]
[1642479813850,0.25,138.4,138.3,22.6346]
[1642479814047,2.891,138.39,138.3,22.6346]
[1642479814247,2.891,138.39,138.31,0.25]
[1642479814447,82.3,138.4,138.31,0.25]
[1642479814649,2.891,138.39,138.31,0.25]
[1642479815048,27.12986466,138.38,138.31,0.25]
[1642479815649,0.26,138.39,138.31,0.25]
[1642479816149,16.23,138.4,138.31,0.25]
[1642479816349,16.49,138.4,138.31,0.25]
[1642479816649,16.49,138.4,138.32,1.33877216]
[1642479816850,16.49,138.4,138.33,48.19509762]
[1642479817652,10.23,138.4,138.33,48.19509762]
[1642479817852,10.23,138.43,138.34,10.8399]
[1642479818252,16.23,138.43,138.35,0.25]
[1642479818452,10.23,138.43,138.33,47.94509762]
[1642479818654,2.89,138.42,138.31,24.5468]
[1642479818854,2.89,138.42,138.32,0.25]
[1642479819055,0.26,138.42,138.32,0.25]
[1642479819255,10.23,138.43,138.32,0.25]
[1642479819656,28.08748604,138.42,138.33,10.8405]
[1642479819855,28.08748604,138.42,138.34,0.25]
[1642479820057,28.08748604,138.42,138.32,39.87652464]
[1642479820854,10.23,138.43,138.32,39.87652464]
[1642479820855,10.23,138.43,138.34,10.8396]
[1642479821256,10.23,138.43,138.35,0.25]
[1642479821857,10.23,138.43,138.35,46.54781168]
[1642479822059,10.23,138.43,138.35,47.88658384]
[1642479822260,16.23,138.43,138.35,47.88658384]
[1642479822457,10.23,138.43,138.36,10.8383]
[1642479822859,10.23,138.43,138.37,0.25]
[1642479823258,10.49,138.43,138.37,0.25]
[1642479823458,2.89,138.42,138.33,30.37327216]
[1642479823684,2.89,138.42,138.35,10.839]
[1642479823884,2.89,138.42,138.34,0.25]
[1642479824086,2.89,138.42,138.32,24.5466]
[1642479824087,0.25,138.41,138.32,24.5466]
[1642479824385,2.89,138.4,138.3,6.1782005]
[1642479824585,10.23,138.39,138.3,6.1782005]
[1642479825585,10.23,138.39,138.3,4.3772749]
[1642479826186,2.891,138.46,138.31,10.8425]
[1642479826385,10.23,138.45,138.32,48.4488]
[1642479826589,2.89,138.44,138.32,48.4488]
[1642479826787,2.89,138.44,138.32,64.9388]
[1642479826989,2.89,138.46,138.32,64.9388]
[1642479827288,2.89,138.46,138.35,10.8371]
[1642479827487,10.23,138.47,138.35,16.1801]
[1642479827488,13.12,138.47,138.35,16.1801]
[1642479827689,10.23,138.47,138.36,0.25]
[1642479828288,10.23,138.47,138.39,10.8349]
[1642479828488,10.23,138.47,138.4,38.65098327]
[1642479828689,10.23,138.47,138.4,38.90098327]
[1642479828690,10.49,138.47,138.4,38.90098327]
[1642479829088,10.23,138.47,138.4,38.90098327]
[1642479829688,10.23,138.47,138.41,10.8348]
[1642479830291,13.118,138.47,138.41,10.8348]
[1642479831599,10.23,138.5,138.42,0.25]
[1642479831808,2.888,138.51,138.44,10.8325]
[1642479832199,10.23,138.52,138.45,0.25]
[1642479832403,10.23,138.52,138.45,38.69044351]
[1642479832598,10.23,138.52,138.45,47.01744351]
[1642479832806,0.26,138.52,138.46,0.25]
[1642479833000,5.68307288,138.53,138.46,0.25]
[1642479833601,5.68307288,138.53,138.46,11.0803]
[1642479833799,2.888,138.54,138.46,11.0803]
[1642479834400,3.148,138.54,138.46,11.0803]
[1642479834600,9.148,138.54,138.46,11.0803]
[1642479835200,8.888,138.54,138.46,11.0803]
[1642479835404,2.888,138.54,138.46,11.0803]
[1642479836601,3.148,138.54,138.46,11.0803]
[1642479837608,0.25,138.53,138.41,24.427]
[1642479837806,2.888,138.52,138.41,24.427]
[1642479838110,4.67705272,138.52,138.41,24.427]
[1642479838307,2.888,138.52,138.41,24.427]
[1642479838505,8.02619467,138.52,138.42,46.09544942]
[1642479838906,8.02619467,138.52,138.44,10.832]
[1642479839911,84.938,138.54,138.45,40.91323547]
[1642479840108,0.26,138.52,138.45,40.91323547]
[1642479840306,85.198,138.54,138.46,0.25]
[1642479840506,13.118,138.54,138.46,0.25]
[1642479840710,10.23,138.54,138.46,0.25]
[1642479841606,7.57307092,138.53,138.46,0.25]
[1642479841805,10.46107092,138.53,138.43,36.0998]
[1642479842008,10.46107092,138.53,138.41,24.427]
[1642479842207,10.46107092,138.53,138.42,0.25]
[1642479842406,0.25,138.52,138.42,10.48]
[1642479842808,0.25,138.52,138.42,56.32908969]
[1642479843007,11.0843,138.52,138.42,67.16258969]
[1642479843508,0.25,138.52,138.42,67.16258969]
[1642479843708,16.46107092,138.53,138.42,67.16258969]
[1642479844315,7.57307092,138.53,138.42,67.16258969]
[1642479844613,10.46107092,138.53,138.42,67.16258969]
[1642479844813,7.57307092,138.53,138.42,67.16258969]
[1642479845215,7.83307092,138.53,138.42,73.16258969]
[1642479845919,0.26,138.53,138.42,73.16258969]
[1642479846119,0.26,138.53,138.43,23.7906]
[1642479846319,24.6604,138.55,138.46,10.8299]
[1642479846520,24.4004,138.55,138.46,10.8299]
[1642479846720,13.118,138.56,138.43,46.8906]
[1642479846920,28.14352485,138.54,138.45,47.8396205]
[1642479847120,2.888,138.53,138.45,47.8396205]
[1642479847320,31.03152485,138.54,138.45,47.8396205]
[1642479847820,26.2436,138.56,138.46,10.8299]
[1642479848022,23.3556,138.56,138.46,10.8299]
[1642479848222,23.3556,138.56,138.47,0.25]
[1642479848424,2.887,138.55,138.46,0.25]
[1642479848626,7.00094824,138.55,138.46,0.25]
[1642479849322,7.26094824,138.55,138.46,0.25]
[1642479849524,3.147,138.55,138.48,10.8287]
[1642479849722,0.26,138.55,138.48,10.8287]
[1642479849943,2.887,138.54,138.46,25.2375]
[1642479850143,8.74127698,138.53,138.43,33.33]
[1642479850342,8.74127698,138.53,138.44,0.25]
[1642479850542,8.74127698,138.53,138.44,11.0824]
[1642479850543,2.888,138.52,138.44,11.0824]
[1642479850744,11.62927698,138.53,138.44,11.0824]
[1642479850945,0.25,138.52,138.44,11.0824]
[1642479851142,0.25,138.52,138.45,35.41375357]
[1642479851343,0.25,138.52,138.46,0.25]
[1642479851744,2.888,138.51,138.42,24.9824]
[1642479852145,0.25,138.5,138.39,34.8223]
[1642479852346,2.888,138.49,138.39,65.4675]
[1642479852645,29.25101799,138.5,138.4,36.32647498]
[1642479853046,2.888,138.49,138.41,0.25]
[1642479853246,0.51,138.5,138.41,11.0842]
[1642479854046,0.25,138.5,138.41,11.0842]
[1642479854247,0.25,138.5,138.41,17.0842]
[1642479854645,3.148,138.51,138.41,17.0842]
[1642479854846,0.26,138.51,138.41,17.0842]
[1642479855248,24.8317,138.52,138.41,39.612]
[1642479856050,27.275,138.53,138.41,39.612]
[1642479856247,0.25,138.52,138.41,39.872]
[1642479856446,27.275,138.53,138.41,39.872]
[1642479856647,2.888,138.56,138.41,50.102]
[1642479857450,25.8722,138.56,138.41,49.842]
[1642479857650,31.8722,138.56,138.41,49.842]
[1642479857853,71.82,138.55,138.41,49.842]
[1642479858051,13.118,138.54,138.42,4.06519461]
[1642479858254,10.8341,138.52,138.43,46.19329122]
[1642479858453,2.888,138.51,138.43,0.25]
[1642479858655,3.138,138.51,138.43,0.25]
[1642479859457,30.9863098,138.5,138.43,0.25]
[1642479859856,30.9863098,138.5,138.42,10.8339]
[1642479860056,3.138,138.49,138.41,33.3627]
[1642479860456,33.8743098,138.5,138.41,33.3627]
[1642479860657,0.25,138.49,138.41,33.3627]
[1642479861365,0.25,138.49,138.42,0.25]
[1642479861559,0.25,138.49,138.42,11.084]
[1642479863566,0.25,138.49,138.43,48.42365108]
[1642479863770,24.78285272,138.53,138.44,0.25]
[1642479863967,22.9938,138.53,138.44,0.25]
[1642479864164,15.91307288,138.56,138.44,1.58876309]
[1642479864365,71.82,138.55,138.44,1.58876309]
[1642479864766,6.0,138.55,138.44,1.58876309]
[1642479864964,15.91307288,138.56,138.46,10.8307]
[1642479865164,10.23,138.56,138.46,10.8307]
[1642479865365,10.23,138.56,138.47,0.25]
[1642479865366,0.25,138.55,138.47,0.25]
[1642479865965,0.25,138.55,138.49,10.8281]
[1642479866467,0.25,138.55,138.46,45.94250046]
[1642479866665,2.887,138.54,138.46,45.94250046]
[1642479866866,0.25,138.53,138.47,0.25]
[1642479867865,2.5514644,138.53,138.47,0.25]
[1642479868267,0.25,138.53,138.47,0.25]
[1642479868867,2.888,138.56,138.47,0.25]
[1642479869069,23.5677,138.57,138.47,0.25]
[1642479869267,0.25,138.56,138.47,0.25]
[1642479869668,0.25,138.56,138.47,11.0801]
[1642479869869,0.25,138.56,138.47,17.3401]
[1642479870870,0.25,138.56,138.47,41.955]
[1642479871270,0.25,138.56,138.47,41.695]
[1642479871672,0.25,138.57,138.47,41.695]
[1642479872272,0.25,138.57,138.48,1.33876309]
[1642479872472,3.137,138.57,138.49,52.38669695]
[1642479872673,3.137,138.57,138.49,0.25]
[1642479872873,74.957,138.57,138.47,24.8649]
[1642479873274,75.217,138.57,138.47,24.8649]
[1642479873475,72.33,138.57,138.47,24.8649]
[1642479873677,27.21228502,138.56,138.48,36.89530717]
[1642479873882,4.11385216,138.56,138.49,0.25]
[1642479875679,0.25,138.55,138.49,0.25]
[1642479875880,72.07,138.55,138.49,0.25]
[1642479877102,72.07,138.55,138.44,65.5406]
[1642479877304,72.33,138.55,138.44,65.5406]
[1642479877502,2.888,138.54,138.48,10.8292]
[1642479877903,0.25,138.53,138.48,10.8292]
[1642479878303,77.82,138.55,138.49,43.84962659]
[1642479878705,71.82,138.55,138.49,43.84962659]
[1642479879105,0.25,138.54,138.49,43.84962659]
[1642479880006,71.82,138.55,138.5,0.25]
[1642479880608,23.5876,138.56,138.5,0.25]
[1642479880810,0.25,138.55,138.5,0.25]
[1642479883511,0.25,138.55,138.49,0.25]
[1642479883913,2.887,138.54,138.46,10.8304]
[1642479884117,2.887,138.54,138.42,36.1042]
[1642479884315,2.887,138.54,138.43,44.60935042]
[1642479884316,71.82,138.52,138.43,44.60935042]
[1642479884517,71.82,138.52,138.44,10.8318]
[1642479884718,0.25,138.51,138.44,10.8318]
[1642479885016,0.25,138.51,138.39,49.89656309]
[1642479885214,23.3824,138.51,138.44,0.25]
[1642479885417,23.3824,138.51,138.4,0.25]
[1642479885619,95.2024,138.51,138.4,0.25]
[1642479886016,95.2024,138.51,138.4,48.90307561]
[1642479886216,95.2024,138.51,138.4,54.90307561]
[1642479886414,95.2024,138.51,138.41,24.6595]
[1642479886615,95.2024,138.51,138.42,10.8334]
[1642479886815,94.9524,138.51,138.43,46.30651154]
[1642479887215,94.9524,138.51,138.44,0.25]
[1642479888316,23.1324,138.51,138.44,0.25]
[1642479888516,23.1324,138.51,138.44,11.0819]
[1642479889018,23.3924,138.51,138.44,11.0819]
[1642479890621,95.2124,138.51,138.44,11.0819]
[1642479891221,23.3924,138.51,138.44,11.0819]
[1642479892323,3.98121494,138.5,138.42,10.8341]
[1642479892524,20.21121494,138.5,138.41,24.6595]
[1642479892724,71.82,138.49,138.41,24.6595]
[1642479892924,2.888,138.48,138.41,24.6595]
[1642479893123,3.138,138.48,138.41,24.6595]
[1642479893324,29.83612249,138.47,138.41,24.6595]
[1642479893725,0.25,138.46,138.41,24.6595]
[1642479893925,2.888,138.48,138.41,24.6595]
[1642479894124,0.25,138.47,138.41,24.6595]
[1642479894726,29.53404578,138.47,138.41,24.6595]
[1642479895526,29.53404578,138.47,138.39,34.9285]
[1642479895725,2.888,138.46,138.37,10.8373]
[1642479895926,8.888,138.46,138.36,23.7062]
[1642479896125,10.48,138.45,138.36,23.7062]
[1642479896327,8.45824919,138.44,138.36,23.7062]
[1642479896729,10.48,138.45,138.36,23.7062]
[1642479896929,82.3,138.45,138.36,23.7062]
[1642479897128,85.19,138.45,138.37,11.088]
[1642479897732,85.19,138.45,138.38,47.00224016]
[1642479898027,82.3,138.45,138.38,47.00224016]
[1642479898329,88.3,138.45,138.39,0.25]
[1642479899532,10.48,138.45,138.38,47.00224016]
[1642479899929,10.49,138.45,138.38,47.00224016]
[1642479900335,10.49,138.45,138.38,57.83924016]
[1642479900935,10.49,138.45,138.39,0.25]
[1642479901536,10.23,138.45,138.39,0.25]
[1642479902660,10.23,138.45,138.39,11.0861]
[1642479903460,10.49,138.45,138.39,11.0861]
[1642479904061,10.49,138.45,138.39,0.25]
[1642479904263,16.49,138.45,138.39,0.25]
[1642479904864,0.25,138.44,138.39,0.25]
[1642479905065,72.07,138.44,138.37,10.838]
[1642479905262,72.07,138.44,138.38,0.25]
[1642479905466,0.25,138.44,138.38,0.25]
[1642479905664,6.26,138.45,138.38,0.25]
[1642479905865,0.26,138.45,138.38,0.25]
[1642479906264,24.6507,138.46,138.39,10.8364]
[1642479906664,0.26,138.46,138.4,0.25]
[1642479906864,0.25,138.47,138.4,0.25]
[1642479907765,0.25,138.47,138.42,35.2987713]
[1642479908170,0.25,138.47,138.42,41.2987713]
[1642479908569,77.82,138.48,138.42,41.2987713]
[1642479908769,40.42318119,138.51,138.43,0.25]
[1642479908968,27.30518119,138.51,138.43,0.25]
[1642479909170,0.25,138.5,138.43,0.25]
[1642479909969,6.0,138.51,138.43,0.25]
[1642479910170,4.08138119,138.52,138.45,10.8317]
[1642479910369,4.08138119,138.52,138.46,35.38729032]
[1642479910573,10.08138119,138.52,138.46,35.38729032]
[1642479910771,20.31138119,138.53,138.46,35.38729032]
[1642479910975,4.08138119,138.53,138.46,41.09529032]
[1642479911170,4.08138119,138.53,138.46,51.92619032]
[1642479911970,2.05716397,138.52,138.46,51.92619032]
[1642479914272,2.05716397,138.52,138.46,57.92619032]
[1642479914672,2.31716397,138.52,138.46,57.92619032]
[1642479915076,2.31716397,138.52,138.46,51.92619032]
[1642479915677,2.31716397,138.52,138.46,51.67619032]
[1642479915876,2.31716397,138.52,138.46,45.96819032]
[1642479917276,0.25,138.51,138.46,45.96819032]
[1642479917477,2.31716397,138.52,138.46,45.96819032]
[1642479918677,0.25,138.51,138.46,45.96819032]
[1642479918879,2.30716397,138.51,138.46,45.96819032]
[1642479920075,2.30716397,138.51,138.45,23.1543]
[1642479920076,2.30716397,138.51,138.44,10.8318]
[1642479920276,2.888,138.5,138.44,10.8318]
[1642479920678,0.25,138.49,138.44,10.8318]
[1642479920878,0.25,138.49,138.43,49.05973124]
[1642479921077,2.30716397,138.49,138.43,49.05973124]
[1642479922479,2.05716397,138.49,138.43,49.05973124]
[1642479922680,2.05716397,138.49,138.43,59.89233124]
[1642479922881,2.31716397,138.49,138.43,65.89233124]
[1642479923079,2.31716397,138.49,138.44,0.25]
[1642479923782,0.26,138.49,138.44,11.082]
[1642479924179,2.05716397,138.5,138.44,17.082]
[1642479924380,2.31716397,138.5,138.44,17.082]
[1642479925582,2.31716397,138.5,138.44,0.25]
[1642479925782,0.25,138.49,138.43,49.05973124]
[1642479925986,72.07,138.49,138.41,2.01828649]
[1642479926184,2.888,138.48,138.41,2.01828649]
[1642479926384,0.25,138.47,138.41,2.01828649]
[1642479926785,8.05716397,138.49,138.42,47.34684399]
[1642479926985,0.25,138.47,138.42,47.34684399]
[1642479927185,2.05716397,138.49,138.42,47.34684399]
[1642479927386,2.05716397,138.49,138.43,0.25]
[1642479927888,2.05716397,138.46,138.43,0.25]
[1642479928185,2.05716397,138.46,138.43,11.0831]
[1642479928386,2.05716397,138.46,138.44,6.06439994]
[1642479928588,2.05716397,138.46,138.45,42.27262162]
[1642479928787,2.05716397,138.49,138.45,42.27262162]
[1642479929688,2.05716397,138.5,138.45,42.27262162]
[1642479929890,2.31716397,138.5,138.45,42.27262162]
[1642479930689,0.26,138.5,138.45,42.27262162]
[1642479930888,0.25,138.51,138.45,42.27262162]
[1642479931694,80.13716397,138.52,138.46,0.25]
[1642479931896,79.13716397,138.52,138.46,0.25]
[1642479933497,77.08,138.52,138.46,0.25]
[1642479935102,77.08,138.52,138.43,22.8361]
[1642479935103,3.138,138.51,138.43,22.8361]
[1642479935301,15.15705272,138.51,138.43,28.8361]
[1642479935705,15.15705272,138.51,138.43,22.8361]
[1642479936128,70.82,138.5,138.43,62.05496087]
[1642479936332,0.25,138.49,138.43,62.05496087]
[1642479937232,70.82,138.5,138.44,0.25]
[1642479937432,12.28716397,138.51,138.44,0.25]
[1642479938333,10.23,138.51,138.44,0.25]
[1642479938732,10.23,138.51,138.44,11.0825]
[1642479938935,0.26,138.51,138.44,11.0825]
[1642479939431,0.25,138.51,138.44,11.0825]
[1642479943237,77.33,138.52,138.44,11.0825]
[1642479943838,2.05716397,138.51,138.44,11.0825]
[1642479944039,2.05716397,138.51,138.44,0.25]
[1642479947941,8.31716397,138.51,138.44,0.25]
[1642479948444,8.31716397,138.51,138.44,11.0824]
[1642479950648,2.05716397,138.5,138.44,11.0824]
[1642479951646,2.31716397,138.5,138.44,11.0824]
[1642479953549,2.05716397,138.5,138.44,11.0824]
[1642479954149,2.05716397,138.5,138.44,17.0824]
[1642479954553,2.05716397,138.52,138.44,10.8324]
[1642479954751,2.31716397,138.52,138.44,10.8324]
[1642479955884,2.31716397,138.52,138.46,10.8309]
[1642479956079,8.31716397,138.52,138.46,10.8309]
[1642479956280,8.31716397,138.52,138.47,41.52606996]
[1642479956480,2.05716397,138.51,138.47,41.52606996]
[1642479957282,2.31716397,138.51,138.47,41.52606996]
[1642479958082,2.31716397,138.51,138.47,52.35606996]
[1642479959286,0.26,138.51,138.47,11.08]
[1642479959486,0.26,138.51,138.47,0.25]
[1642479959687,8.05716397,138.52,138.47,0.25]
[1642479959886,8.31716397,138.52,138.47,0.25]
[1642479960293,2.05716397,138.51,138.47,36.34160784]
[1642479960487,2.05716397,138.51,138.47,47.17180784]
[1642479961688,2.05716397,138.52,138.47,47.17180784]
[1642479961888,2.05716397,138.52,138.47,54.80280784]
[1642479962087,2.05716397,138.52,138.47,60.80280784]
[1642479962893,2.05716397,138.52,138.47,71.03280784]
[1642479963089,2.05716397,138.55,138.47,73.05109433]
[1642479963290,2.05716397,138.55,138.47,145.13109433]
[1642479964297,2.31716397,138.55,138.47,145.13109433]
[1642479964794,0.26,138.55,138.5,10.8254]
[1642479964990,0.26,138.55,138.51,45.59588467]
[1642479965191,2.05716397,138.57,138.51,45.84588467]
[1642479965392,2.05716397,138.57,138.51,51.84588467]
[1642479965592,1.55716397,138.57,138.51,51.84588467]
[1642479966595,1.55716397,138.57,138.52,10.8256]
[1642479966796,1.55716397,138.57,138.53,0.25]
[1642479968102,1.81716397,138.57,138.52,0.25]
[1642479968297,1.31716397,138.57,138.52,0.25]
[1642479968697,1.31716397,138.57,138.53,10.8253]
[1642479968897,1.31716397,138.57,138.54,0.25]
[1642479969098,1.31716397,138.57,138.55,6.06439994]
[1642479969501,1.31716397,138.57,138.56,48.23179629]
[1642479969699,2.886,138.6,138.56,48.23179629]
[1642479970104,2.886,138.6,138.54,0.25]
[1642479970301,0.25,138.59,138.52,29.4992]
[1642479970502,2.886,138.58,138.53,0.25]
[1642479970706,2.886,138.6,138.51,10.23]
[1642479970905,0.25,138.59,138.53,0.25]
[1642479971104,2.886,138.58,138.53,0.25]
[1642479971903,2.886,138.58,138.52,0.25]
[1642479974030,2.386,138.58,138.52,0.25]
[1642479974231,3.137,138.59,138.52,0.25]
[1642479974437,3.136,138.6,138.52,0.25]
[1642479974633,6.0,138.59,138.52,0.25]
[1642479975034,3.136,138.6,138.52,0.25]
[1642479975233,6.0,138.59,138.52,0.25]
[1642479975432,3.136,138.6,138.52,0.25]
[1642479975633,9.136,138.6,138.52,11.0763]
[1642479976034,6.25,138.6,138.52,11.0763]
[1642479976233,24.127,138.61,138.52,11.0763]
[1642479976434,24.127,138.61,138.52,41.5122]
[1642479977033,0.25,138.6,138.52,41.5122]
[1642479977435,24.127,138.61,138.52,41.5122]
[1642479977739,0.25,138.6,138.52,41.5122]
[1642479977937,24.127,138.61,138.52,41.5122]
[1642479978744,28.28373139,138.61,138.52,41.5122]
[1642479978942,0.25,138.6,138.52,35.0482]
[1642479979138,74.956,138.6,138.52,23.9719]
[1642479979338,74.956,138.6,138.47,10.23]
[1642479979544,23.5947,138.59,138.45,35.0663]
[1642479979742,2.887,138.58,138.45,35.0663]
[1642479980041,32.31619465,138.57,138.46,35.75909732]
[1642479980244,74.957,138.56,138.46,35.75909732]
[1642479980448,98.901,138.56,138.47,22.7352]
[1642479980642,98.401,138.56,138.47,22.9852]
[1642479981443,98.401,138.56,138.47,23.4852]
[1642479982245,98.401,138.56,138.47,34.3152]
[1642479982847,104.401,138.56,138.47,34.3152]
[1642479987446,104.401,138.56,138.47,33.8152]
[1642479987646,115.2308,138.56,138.47,33.8152]
[1642479988148,43.4108,138.56,138.47,33.8152]
[1642479988346,32.581,138.56,138.47,33.8152]
[1642479988547,30.194,138.56,138.47,33.8152]
[1642479990657,71.82,138.55,138.47,33.8152]
[1642479990857,0.25,138.54,138.47,33.8152]
[1642479991056,0.25,138.54,138.47,22.7352]
[1642479991456,0.25,138.54,138.46,35.75909732]
[1642479992156,0.25,138.54,138.46,46.58999732]
[1642479992383,0.25,138.54,138.47,0.25]
[1642479993259,0.25,138.54,138.46,46.58999732]
[1642479994060,11.0815,138.54,138.46,35.75909732]
[1642479994459,6.25,138.54,138.47,0.25]
[1642479994965,6.25,138.54,138.47,11.0796]
[1642479995162,2.887,138.55,138.47,11.0796]
[1642479995363,95.764,138.56,138.47,11.0796]
[1642479995364,0.25,138.54,138.47,11.0796]
[1642479995561,0.25,138.54,138.47,33.8859]
[1642479996261,0.25,138.55,138.47,33.6359]
[1642479996461,3.137,138.55,138.47,33.6359]
[1642479997564,11.0807,138.55,138.47,33.6359]
[1642479997764,11.0807,138.55,138.48,0.25]
[1642479998064,17.0807,138.55,138.47,33.6359]
[1642479998364,17.0807,138.55,138.48,0.25]
[1642479999463,88.9007,138.55,138.48,0.25]
[1642480000364,88.6507,138.55,138.47,0.25]
[1642480000763,88.6507,138.55,138.43,2.887]
[1642480000764,2.887,138.54,138.43,2.887]
[1642480000966,10.8334,138.52,138.4,6.1782005]
[1642480001264,2.888,138.51,138.4,6.1782005]
[1642480001465,10.23,138.5,138.4,17.0132005]
[1642480001663,10.23,138.5,138.41,48.42749041]
[1642480001664,2.888,138.49,138.41,48.42749041]
[1642480001964,3.138,138.49,138.41,48.42749041]
[1642480002163,3.138,138.49,138.42,0.25]
[1642480002366,0.25,138.49,138.41,51.31549041]
[1642480002565,3.138,138.49,138.41,48.42749041]
[1642480003166,3.138,138.49,138.41,59.26229041]
[1642480005167,9.138,138.49,138.41,59.26229041]
[1642480005370,8.888,138.49,138.41,59.26229041]
[1642480005567,6.0,138.49,138.42,0.25]
[1642480005769,0.25,138.48,138.42,11.0836]
[1642480006973,0.25,138.49,138.42,0.25]
[1642480007172,3.138,138.49,138.42,0.25]
[1642480007401,3.138,138.49,138.41,48.42749041]
[1642480007802,6.25,138.49,138.42,0.25]
[1642480008101,0.25,138.49,138.42,0.25]
[1642480008301,0.25,138.49,138.42,11.0841]
[1642480009203,0.25,138.49,138.39,2.888]
[1642480009403,2.888,138.48,138.38,24.8673]
[1642480009606,2.888,138.48,138.39,0.25]
[1642480009803,0.25,138.47,138.39,0.25]
[1642480010003,2.888,138.46,138.39,0.25]
[1642480010205,2.888,138.46,138.39,49.77616148]
[1642480010410,0.25,138.45,138.39,49.77616148]
[1642480012508,11.0867,138.47,138.39,49.77616148]
[1642480013410,17.0867,138.47,138.39,49.77616148]
[1642480013609,17.0867,138.47,138.39,60.61246148]
[1642480014709,6.25,138.47,138.39,63.50046148]
[1642480015119,0.25,138.47,138.39,63.50046148]
[1642480019220,0.25,138.47,138.39,60.61246148]
[1642480023026,0.25,138.47,138.39,60.11246148]
[1642480024730,0.25,138.47,138.4,0.25]
[1642480027378,0.25,138.47,138.41,0.67386301]
[1642480027977,71.82,138.46,138.41,0.67386301]